[Event "January 9 Early 2024"]
[Site "https://www.chess.com"]
[Date "2024.01.11"]
[Round "6"]
[White "Gruzman, Ilya"]
[Black "Niedbala, Bartlomiej"]
[Result "0-1"]
[Board "124"]
[TimeControl "180+1"]
[WhiteFideId "2812703"]
[BlackFideId "21834008"]
[WhiteElo "2428"]
[BlackElo "2683"]
[WhiteTeam "ISR"]
[BlackTeam "POL"]
[WhiteClock "0:00:01"]
[BlackClock "0:00:18"]

1. d4 {[%clk 0:02:59]}  Nf6 {[%clk 0:02:58]} 2. c4 {[%clk 0:03:00]}  e6 {[%clk 0:02:57]} 3. Nf3 {[%clk 0:03:00]}  d5 {[%clk 0:02:57]} 4. Nc3 {[%clk 0:03:00]}  a6 {[%clk 0:02:56]} 5. cxd5 {[%clk 0:03:00]}  exd5 {[%clk 0:02:57]} 6. Bf4 {[%clk 0:03:00]}  Bb4 {[%clk 0:02:54]} 7. e3 {[%clk 0:02:58]}  Ne4 {[%clk 0:02:55]} 8. Qb3 {[%clk 0:02:53]}  Bxc3+ {[%clk 0:02:35]} 9. bxc3 {[%clk 0:02:52]}  g5 {[%clk 0:02:35]} 10. Be5 {[%clk 0:02:45]}  f6 {[%clk 0:02:36]} 11. Bg3 {[%clk 0:02:45]}  h5 {[%clk 0:02:36]} 12. h3 {[%clk 0:02:15]}  Nxg3 {[%clk 0:02:32]} 13. fxg3 {[%clk 0:02:16]}  Qd6 {[%clk 0:02:29]} 14. Bd3 {[%clk 0:02:13]}  Qxg3+ {[%clk 0:02:28]} 15. Kf1 {[%clk 0:02:09]}  c6 {[%clk 0:02:21]} 16. Bg6+ {[%clk 0:01:53]}  Ke7 {[%clk 0:01:52]} 17. e4 {[%clk 0:01:41]}  dxe4 {[%clk 0:01:19]} 18. Re1 {[%clk 0:01:37]}  Kd6 {[%clk 0:01:06]} 19. Rxe4 {[%clk 0:01:26]}  Nd7 {[%clk 0:00:59]} 20. c4 {[%clk 0:01:10]}  Kc7 {[%clk 0:00:58]} 21. c5 {[%clk 0:00:52]}  Rd8 {[%clk 0:00:47]} 22. Re7 {[%clk 0:00:41]}  Kb8 {[%clk 0:00:45]} 23. d5 {[%clk 0:00:16]}  Nxc5 {[%clk 0:00:40]} 24. Qc2 {[%clk 0:00:08]}  Rxd5 {[%clk 0:00:39]} 25. Re8 {[%clk 0:00:03]}  Ka7 {[%clk 0:00:35]} 26. Be4 {[%clk 0:00:02]}  Nxe4 {[%clk 0:00:33]} 27. Qxe4 {[%clk 0:00:03]}  Rd1+ {[%clk 0:00:20]} 28. Ke2 {[%clk 0:00:02]}  Qxg2+ {[%clk 0:00:17]} 29. Kxd1 {[%clk 0:00:01]}  Qxh1+ {[%clk 0:00:18]} 0-1

[Event "January 9 Early 2024"]
[Site "https://www.chess.com"]
[Date "2024.01.11"]
[Round "6"]
[White "Wantiez, Fabrice"]
[Black "Hamblok, Roel"]
[Result "0-1"]
[Board "126"]
[TimeControl "180+1"]
[WhiteFideId "202274"]
[BlackFideId "209317"]
[WhiteElo "2404"]
[BlackElo "2602"]
[WhiteTeam "BEL"]
[BlackTeam "BEL"]
[WhiteClock "0:00:50"]
[BlackClock "0:00:08"]

1. e4 {[%clk 0:02:58]}  Nf6 {[%clk 0:02:58]} 2. e5 {[%clk 0:02:57]}  Ne4 {[%clk 0:02:58]} 3. Nc3 {[%clk 0:02:56]}  Nxc3 {[%clk 0:02:58]} 4. dxc3 {[%clk 0:02:56]}  d6 {[%clk 0:02:58]} 5. exd6 {[%clk 0:02:57]}  exd6 {[%clk 0:02:57]} 6. Bd3 {[%clk 0:02:58]}  g6 {[%clk 0:02:54]} 7. h4 {[%clk 0:02:57]}  h5 {[%clk 0:02:54]} 8. Bg5 {[%clk 0:02:55]}  Be7 {[%clk 0:02:53]} 9. Qe2 {[%clk 0:02:52]}  Nc6 {[%clk 0:02:26]} 10. Nf3 {[%clk 0:02:50]}  Bg4 {[%clk 0:02:25]} 11. O-O-O {[%clk 0:02:48]}  O-O {[%clk 0:02:07]} 12. Qe3 {[%clk 0:02:36]}  Re8 {[%clk 0:02:00]} 13. Rde1 {[%clk 0:02:16]}  Bxf3 {[%clk 0:01:43]} 14. Qxf3 {[%clk 0:02:06]}  Bxg5+ {[%clk 0:01:43]} 15. hxg5 {[%clk 0:02:07]}  Qxg5+ {[%clk 0:01:43]} 16. Kb1 {[%clk 0:02:07]}  Ne5 {[%clk 0:01:21]} 17. Qxb7 {[%clk 0:02:08]}  Nxd3 {[%clk 0:01:21]} 18. cxd3 {[%clk 0:02:06]}  Qd2 {[%clk 0:01:21]} 19. Rxe8+ {[%clk 0:02:01]}  Rxe8 {[%clk 0:01:22]} 20. Qb5 {[%clk 0:01:53]}  Re1+ {[%clk 0:01:19]} 21. Rxe1 {[%clk 0:01:53]}  Qxe1+ {[%clk 0:01:20]} 22. Kc2 {[%clk 0:01:53]}  Qxf2+ {[%clk 0:01:20]} 23. Kb3 {[%clk 0:01:54]}  Qxg2 {[%clk 0:01:19]} 24. Qb8+ {[%clk 0:01:52]}  Kg7 {[%clk 0:01:19]} 25. Qxa7 {[%clk 0:01:47]}  Qd5+ {[%clk 0:01:13]} 26. Kc2 {[%clk 0:01:46]}  h4 {[%clk 0:01:13]} 27. Qe3 {[%clk 0:01:43]}  Qg2+ {[%clk 0:01:08]} 28. Kb3 {[%clk 0:01:36]}  c5 {[%clk 0:01:05]} 29. Qf4 {[%clk 0:01:32]}  Qd5+ {[%clk 0:01:00]} 30. Ka3 {[%clk 0:01:29]}  h3 {[%clk 0:00:57]} 31. Qg3 {[%clk 0:01:25]}  Qh5 {[%clk 0:00:50]} 32. Qh2 {[%clk 0:01:22]}  d5 {[%clk 0:00:32]} 33. b4 {[%clk 0:01:19]}  d4 {[%clk 0:00:29]} 34. cxd4 {[%clk 0:01:17]}  cxd4 {[%clk 0:00:27]} 35. Kb3 {[%clk 0:01:10]}  Qd5+ {[%clk 0:00:24]} 36. Ka3 {[%clk 0:01:08]}  Qg2 {[%clk 0:00:21]} 37. Qe5+ {[%clk 0:01:08]}  Kh7 {[%clk 0:00:21]} 38. Qf6 {[%clk 0:01:05]}  Qa8+ {[%clk 0:00:18]} 39. Kb2 {[%clk 0:01:04]}  Qg2+ {[%clk 0:00:18]} 40. Ka3 {[%clk 0:01:03]}  Qd5 {[%clk 0:00:19]} 41. Qh4+ {[%clk 0:01:01]}  Qh5 {[%clk 0:00:19]} 42. Qf6 {[%clk 0:00:59]}  Kg8 {[%clk 0:00:13]} 43. Qd8+ {[%clk 0:00:59]}  Kg7 {[%clk 0:00:10]} 44. Qxd4+ {[%clk 0:00:59]}  f6 {[%clk 0:00:10]} 45. Qg1 {[%clk 0:00:55]}  h2 {[%clk 0:00:09]} 46. Qh1 {[%clk 0:00:55]}  Qh3 {[%clk 0:00:08]} 47. Ka4 {[%clk 0:00:52]}  g5 {[%clk 0:00:08]} 48. Qb7+ {[%clk 0:00:50]}  Kh6 {[%clk 0:00:08]} 49. Qc8 {[%clk 0:00:50]}  Qxc8 {[%clk 0:00:08]} 0-1

[Event "January 9 Early 2024"]
[Site "https://www.chess.com"]
[Date "2024.01.11"]
[Round "6"]
[White "Bjerre, Jonas Buhl"]
[Black "Aronian, Levon"]
[Result "1/2-1/2"]
[Board "128"]
[TimeControl "180+1"]
[WhiteFideId "1444948"]
[BlackFideId "13300474"]
[WhiteElo "2970"]
[BlackElo "3091"]
[WhiteTeam "DEN"]
[BlackTeam "USA"]
[WhiteClock "0:00:14"]
[BlackClock "0:00:14"]

1. e4 {[%clk 0:03:00]}  c5 {[%clk 0:02:58]} 2. Nf3 {[%clk 0:03:00]}  e6 {[%clk 0:02:59]} 3. g3 {[%clk 0:03:00]}  Nc6 {[%clk 0:02:51]} 4. Bg2 {[%clk 0:02:59]}  Nf6 {[%clk 0:02:51]} 5. Nc3 {[%clk 0:02:59]}  a6 {[%clk 0:02:44]} 6. a4 {[%clk 0:02:58]}  d5 {[%clk 0:02:37]} 7. exd5 {[%clk 0:02:58]}  exd5 {[%clk 0:02:38]} 8. d4 {[%clk 0:02:58]}  Bg4 {[%clk 0:02:38]} 9. h3 {[%clk 0:02:56]}  Bxf3 {[%clk 0:02:34]} 10. Qxf3 {[%clk 0:02:56]}  Nxd4 {[%clk 0:02:33]} 11. Qd3 {[%clk 0:02:55]}  Qd7 {[%clk 0:02:05]} 12. O-O {[%clk 0:02:42]}  Be7 {[%clk 0:01:51]} 13. Bg5 {[%clk 0:02:34]}  Qf5 {[%clk 0:01:26]} 14. Qxf5 {[%clk 0:01:59]}  Nxf5 {[%clk 0:01:27]} 15. Rfe1 {[%clk 0:01:46]}  Kf8 {[%clk 0:01:10]} 16. Bxf6 {[%clk 0:01:24]}  Bxf6 {[%clk 0:01:10]} 17. Nxd5 {[%clk 0:01:24]}  Nd4 {[%clk 0:01:10]} 18. Rac1 {[%clk 0:01:04]}  Rb8 {[%clk 0:00:39]} 19. c3 {[%clk 0:01:02]}  Ne6 {[%clk 0:00:35]} 20. Rcd1 {[%clk 0:00:56]}  Bd8 {[%clk 0:00:32]} 21. h4 {[%clk 0:00:43]}  g6 {[%clk 0:00:27]} 22. Bh3 {[%clk 0:00:43]}  Ng7 {[%clk 0:00:27]} 23. b4 {[%clk 0:00:39]}  cxb4 {[%clk 0:00:26]} 24. cxb4 {[%clk 0:00:39]}  Nh5 {[%clk 0:00:25]} 25. a5 {[%clk 0:00:29]}  Kg7 {[%clk 0:00:24]} 26. Bg2 {[%clk 0:00:26]}  b6 {[%clk 0:00:22]} 27. axb6 {[%clk 0:00:22]}  Bxb6 {[%clk 0:00:21]} 28. Ra1 {[%clk 0:00:22]}  Nf6 {[%clk 0:00:18]} 29. Nxf6 {[%clk 0:00:20]}  Kxf6 {[%clk 0:00:18]} 30. Rxa6 {[%clk 0:00:20]}  Kg7 {[%clk 0:00:19]} 31. Re7 {[%clk 0:00:19]}  Rhd8 {[%clk 0:00:18]} 32. Ra2 {[%clk 0:00:15]}  Bd4 {[%clk 0:00:15]} 33. Rb7 {[%clk 0:00:13]}  Rxb7 {[%clk 0:00:14]} 34. Bxb7 {[%clk 0:00:14]}  Rb8 {[%clk 0:00:14]} 35. Bf3 {[%clk 0:00:13]}  Rxb4 {[%clk 0:00:14]} 36. Kg2 {[%clk 0:00:13]}  Rb2 {[%clk 0:00:14]} 37. Rxb2 {[%clk 0:00:13]}  Bxb2 {[%clk 0:00:14]} 38. Be2 {[%clk 0:00:14]}  h5 {[%clk 0:00:14]} 1/2-1/2

[Event "January 9 Early 2024"]
[Site "https://www.chess.com"]
[Date "2024.01.11"]
[Round "6"]
[White "Yagupov, Igor"]
[Black "Pourkashiyan, Atousa"]
[Result "0-1"]
[Board "133"]
[TimeControl "180+1"]
[WhiteFideId "4113632"]
[BlackFideId "12502014"]
[WhiteElo "2626"]
[BlackElo "2493"]
[WhiteTeam "RUS"]
[BlackTeam "USA"]
[WhiteClock "0:00:01"]
[BlackClock "0:00:40"]

1. e4 {[%clk 0:02:56]}  e5 {[%clk 0:02:56]} 2. Nf3 {[%clk 0:02:55]}  Nc6 {[%clk 0:02:54]} 3. Bb5 {[%clk 0:02:54]}  a6 {[%clk 0:02:51]} 4. Ba4 {[%clk 0:02:53]}  d6 {[%clk 0:02:47]} 5. c3 {[%clk 0:02:52]}  Bd7 {[%clk 0:02:44]} 6. O-O {[%clk 0:02:51]}  g6 {[%clk 0:02:45]} 7. d4 {[%clk 0:02:50]}  Bg7 {[%clk 0:02:45]} 8. Re1 {[%clk 0:02:48]}  b5 {[%clk 0:02:34]} 9. Bb3 {[%clk 0:02:44]}  Nf6 {[%clk 0:02:31]} 10. Nbd2 {[%clk 0:02:37]}  O-O {[%clk 0:02:29]} 11. Nf1 {[%clk 0:02:35]}  Bg4 {[%clk 0:02:24]} 12. d5 {[%clk 0:02:30]}  Na5 {[%clk 0:02:23]} 13. Bc2 {[%clk 0:02:30]}  c6 {[%clk 0:02:22]} 14. b4 {[%clk 0:02:27]}  Nc4 {[%clk 0:02:22]} 15. dxc6 {[%clk 0:02:24]}  Qc7 {[%clk 0:02:22]} 16. h3 {[%clk 0:02:15]}  Bc8 {[%clk 0:02:11]} 17. a4 {[%clk 0:02:11]}  Rb8 {[%clk 0:02:08]} 18. axb5 {[%clk 0:02:10]}  axb5 {[%clk 0:02:08]} 19. Ne3 {[%clk 0:02:02]}  Qxc6 {[%clk 0:02:00]} 20. Nxc4 {[%clk 0:01:59]}  Qxc4 {[%clk 0:02:01]} 21. Bd2 {[%clk 0:01:58]}  Bb7 {[%clk 0:01:59]} 22. Bb3 {[%clk 0:01:47]}  Qc6 {[%clk 0:01:39]} 23. Bc2 {[%clk 0:01:31]}  Rfe8 {[%clk 0:01:37]} 24. Nh2 {[%clk 0:01:23]}  d5 {[%clk 0:01:36]} 25. exd5 {[%clk 0:01:17]}  Qxd5 {[%clk 0:01:36]} 26. f3 {[%clk 0:01:09]}  e4 {[%clk 0:01:22]} 27. Bf4 {[%clk 0:01:00]}  Rbc8 {[%clk 0:01:11]} 28. fxe4 {[%clk 0:00:57]}  Nxe4 {[%clk 0:01:03]} 29. Bxe4 {[%clk 0:00:40]}  Rxe4 {[%clk 0:01:02]} 30. Qxd5 {[%clk 0:00:39]}  Bxd5 {[%clk 0:01:03]} 31. Rxe4 {[%clk 0:00:33]}  Bxe4 {[%clk 0:01:03]} 32. Bd2 {[%clk 0:00:29]}  Bxc3 {[%clk 0:01:01]} 33. Bxc3 {[%clk 0:00:23]}  Rxc3 {[%clk 0:01:02]} 34. Re1 {[%clk 0:00:15]}  f5 {[%clk 0:00:57]} 35. Rd1 {[%clk 0:00:10]}  Rb3 {[%clk 0:00:52]} 36. Rd8+ {[%clk 0:00:07]}  Kg7 {[%clk 0:00:52]} 37. Rd7+ {[%clk 0:00:08]}  Kf6 {[%clk 0:00:49]} 38. Rxh7 {[%clk 0:00:06]}  Rxb4 {[%clk 0:00:49]} 39. Nf3 {[%clk 0:00:05]}  Bxf3 {[%clk 0:00:44]} 40. gxf3 {[%clk 0:00:05]}  Kg5 {[%clk 0:00:44]} 41. Rg7 {[%clk 0:00:03]}  Rb2 {[%clk 0:00:43]} 42. h4+ {[%clk 0:00:01]}  Kf6 {[%clk 0:00:40]} 43. Rg8 {[%clk 0:00:01]}  b4 {[%clk 0:00:40]} 0-1

[Event "January 9 Early 2024"]
[Site "https://www.chess.com"]
[Date "2024.01.11"]
[Round "6"]
[White "Potkin, Vladimir"]
[Black "Manon-og, Ramon Jr."]
[Result "1-0"]
[Board "136"]
[TimeControl "180+1"]
[WhiteFideId "4131061"]
[BlackFideId "5200776"]
[WhiteElo "2672"]
[BlackElo "2372"]
[WhiteTeam "RUS"]
[BlackTeam "PHI"]
[WhiteClock "0:00:20"]
[BlackClock "0:00:01"]

1. Nf3 {[%clk 0:03:00]}  Nf6 {[%clk 0:02:58]} 2. c4 {[%clk 0:03:00]}  g6 {[%clk 0:02:58]} 3. Nc3 {[%clk 0:03:00]}  c5 {[%clk 0:02:58]} 4. d4 {[%clk 0:02:59]}  cxd4 {[%clk 0:02:57]} 5. Nxd4 {[%clk 0:03:00]}  Bg7 {[%clk 0:02:57]} 6. e4 {[%clk 0:03:00]}  d6 {[%clk 0:02:56]} 7. Be2 {[%clk 0:03:01]}  Nc6 {[%clk 0:02:56]} 8. Be3 {[%clk 0:03:00]}  O-O {[%clk 0:02:56]} 9. O-O {[%clk 0:03:01]}  Ne5 {[%clk 0:02:38]} 10. h3 {[%clk 0:02:55]}  Bd7 {[%clk 0:02:33]} 11. f4 {[%clk 0:02:52]}  Nc6 {[%clk 0:02:32]} 12. Rc1 {[%clk 0:02:47]}  Qb6 {[%clk 0:02:30]} 13. Nf5 {[%clk 0:02:27]}  Qxb2 {[%clk 0:02:25]} 14. Nxg7 {[%clk 0:02:27]}  Kxg7 {[%clk 0:02:25]} 15. e5 {[%clk 0:02:15]}  Ne8 {[%clk 0:02:13]} 16. Nd5 {[%clk 0:02:09]}  dxe5 {[%clk 0:02:03]} 17. Rb1 {[%clk 0:01:58]}  Qxa2 {[%clk 0:01:55]} 18. Rxb7 {[%clk 0:01:57]}  Bc8 {[%clk 0:01:41]} 19. Rxe7 {[%clk 0:01:23]}  Nxe7 {[%clk 0:01:30]} 20. Nxe7 {[%clk 0:01:24]}  Bb7 {[%clk 0:01:23]} 21. fxe5 {[%clk 0:01:19]}  Qa3 {[%clk 0:01:10]} 22. Bg5 {[%clk 0:01:06]}  Qc5+ {[%clk 0:01:10]} 23. Rf2 {[%clk 0:00:55]}  Qxe5 {[%clk 0:01:08]} 24. Qc1 {[%clk 0:00:51]}  Kh8 {[%clk 0:00:48]} 25. Qa3 {[%clk 0:00:30]}  Ng7 {[%clk 0:00:28]} 26. Bf6 {[%clk 0:00:28]}  Qe6 {[%clk 0:00:11]} 27. Qb2 {[%clk 0:00:27]}  h5 {[%clk 0:00:10]} 28. Bxg7+ {[%clk 0:00:27]}  Kh7 {[%clk 0:00:10]} 29. Bxf8 {[%clk 0:00:26]}  Rxf8 {[%clk 0:00:10]} 30. Qxb7 {[%clk 0:00:27]}  Re8 {[%clk 0:00:06]} 31. Nd5 {[%clk 0:00:27]}  Kg7 {[%clk 0:00:06]} 32. Qb2+ {[%clk 0:00:25]}  Kh6 {[%clk 0:00:06]} 33. Bf1 {[%clk 0:00:23]}  Rc8 {[%clk 0:00:03]} 34. Rf6 {[%clk 0:00:22]}  Qd7 {[%clk 0:00:01]} 35. Qd2+ {[%clk 0:00:20]} 1-0

[Event "January 9 Early 2024"]
[Site "https://www.chess.com"]
[Date "2024.01.11"]
[Round "6"]
[White "Prudnykova, Olga"]
[Black "Aashman Gupta"]
[Result "0-1"]
[Board "137"]
[TimeControl "180+1"]
[WhiteFideId "14121093"]
[BlackFideId "45022500"]
[WhiteElo "2262"]
[BlackElo "2476"]
[WhiteTeam "ISL"]
[BlackTeam "IND"]
[WhiteClock "0:00:27"]
[BlackClock "0:00:03"]

1. e4 {[%clk 0:03:00]}  d5 {[%clk 0:02:50]} 2. exd5 {[%clk 0:03:00]}  Nf6 {[%clk 0:02:50]} 3. Nc3 {[%clk 0:02:58]}  Nxd5 {[%clk 0:02:50]} 4. Bc4 {[%clk 0:02:59]}  Nb6 {[%clk 0:02:49]} 5. Bb3 {[%clk 0:02:58]}  Nc6 {[%clk 0:02:39]} 6. Qh5 {[%clk 0:02:57]}  e6 {[%clk 0:02:29]} 7. Nf3 {[%clk 0:02:56]}  Be7 {[%clk 0:02:24]} 8. d3 {[%clk 0:02:55]}  O-O {[%clk 0:02:24]} 9. Bg5 {[%clk 0:02:39]}  h6 {[%clk 0:02:18]} 10. h4 {[%clk 0:02:37]}  Nd5 {[%clk 0:02:04]} 11. Ne4 {[%clk 0:02:29]}  f5 {[%clk 0:01:54]} 12. Bxd5 {[%clk 0:02:14]}  Qxd5 {[%clk 0:01:44]} 13. Nc3 {[%clk 0:01:58]}  Qd8 {[%clk 0:01:30]} 14. O-O-O {[%clk 0:01:56]}  Qe8 {[%clk 0:01:31]} 15. Qxe8 {[%clk 0:01:55]}  Rxe8 {[%clk 0:01:31]} 16. Bxe7 {[%clk 0:01:46]}  Rxe7 {[%clk 0:01:30]} 17. d4 {[%clk 0:01:46]}  b6 {[%clk 0:01:19]} 18. Rhe1 {[%clk 0:01:37]}  Bb7 {[%clk 0:01:16]} 19. d5 {[%clk 0:01:37]}  exd5 {[%clk 0:01:16]} 20. Nxd5 {[%clk 0:01:37]}  Rxe1 {[%clk 0:01:15]} 21. Rxe1 {[%clk 0:01:38]}  Rc8 {[%clk 0:00:53]} 22. b4 {[%clk 0:01:31]}  a6 {[%clk 0:00:50]} 23. c4 {[%clk 0:01:26]}  b5 {[%clk 0:00:48]} 24. c5 {[%clk 0:01:23]}  Kf7 {[%clk 0:00:40]} 25. h5 {[%clk 0:01:15]}  Rd8 {[%clk 0:00:34]} 26. Nxc7 {[%clk 0:01:08]}  Nxb4 {[%clk 0:00:33]} 27. Ne5+ {[%clk 0:01:08]}  Kf6 {[%clk 0:00:32]} 28. a3 {[%clk 0:00:55]}  Na2+ {[%clk 0:00:16]} 29. Kb2 {[%clk 0:00:42]}  Rd2+ {[%clk 0:00:15]} 30. Kb3 {[%clk 0:00:43]}  a5 {[%clk 0:00:06]} 31. Ne8+ {[%clk 0:00:38]}  Kg5 {[%clk 0:00:03]} 32. a4 {[%clk 0:00:27]}  Bd5+ {[%clk 0:00:03]} 0-1

[Event "January 9 Early 2024"]
[Site "https://www.chess.com"]
[Date "2024.01.11"]
[Round "6"]
[White "Al-Tarboush, Ward"]
[Black "Travkina, Anastasia"]
[Result "1-0"]
[Board "139"]
[TimeControl "180+1"]
[WhiteFideId "7601450"]
[BlackFideId "24129151"]
[WhiteElo "2625"]
[BlackElo "2429"]
[WhiteTeam "NOR"]
[BlackTeam "RUS"]
[WhiteClock "0:00:14"]
[BlackClock "0:00:21"]

1. e4 {[%clk 0:02:56]}  c5 {[%clk 0:03:00]} 2. Nf3 {[%clk 0:02:56]}  d6 {[%clk 0:03:01]} 3. d4 {[%clk 0:02:56]}  cxd4 {[%clk 0:03:02]} 4. Nxd4 {[%clk 0:02:56]}  Nf6 {[%clk 0:03:02]} 5. Nc3 {[%clk 0:02:56]}  g6 {[%clk 0:03:03]} 6. Be2 {[%clk 0:02:55]}  Bg7 {[%clk 0:03:03]} 7. O-O {[%clk 0:02:56]}  O-O {[%clk 0:03:03]} 8. Be3 {[%clk 0:02:56]}  Nc6 {[%clk 0:03:04]} 9. h3 {[%clk 0:02:57]}  Nd7 {[%clk 0:02:54]} 10. Nb3 {[%clk 0:02:50]}  b6 {[%clk 0:02:50]} 11. Qd2 {[%clk 0:02:49]}  Bb7 {[%clk 0:02:50]} 12. Rad1 {[%clk 0:02:49]}  Rc8 {[%clk 0:02:48]} 13. Nd5 {[%clk 0:02:46]}  Nce5 {[%clk 0:02:37]} 14. Bd4 {[%clk 0:02:42]}  Nc4 {[%clk 0:02:22]} 15. Qg5 {[%clk 0:02:20]}  Bxd5 {[%clk 0:01:52]} 16. Qxd5 {[%clk 0:02:20]}  Bxd4 {[%clk 0:01:28]} 17. Qxd4 {[%clk 0:02:20]}  Nce5 {[%clk 0:01:24]} 18. f4 {[%clk 0:02:20]}  Nc6 {[%clk 0:01:22]} 19. Qe3 {[%clk 0:02:20]}  Nc5 {[%clk 0:01:21]} 20. f5 {[%clk 0:02:19]}  Ne5 {[%clk 0:01:18]} 21. Qh6 {[%clk 0:02:13]}  Nxb3 {[%clk 0:01:15]} 22. cxb3 {[%clk 0:02:11]}  Rc2 {[%clk 0:01:12]} 23. Rf4 {[%clk 0:02:04]}  g5 {[%clk 0:00:59]} 24. Qxg5+ {[%clk 0:02:04]}  Kh8 {[%clk 0:01:00]} 25. Bg4 {[%clk 0:01:56]}  Rg8 {[%clk 0:00:57]} 26. Qh4 {[%clk 0:01:56]}  Qc7 {[%clk 0:00:53]} 27. f6 {[%clk 0:01:49]}  e6 {[%clk 0:00:52]} 28. Qe1 {[%clk 0:01:42]}  Qc5+ {[%clk 0:00:47]} 29. Kh1 {[%clk 0:01:41]}  Rxb2 {[%clk 0:00:44]} 30. Rc1 {[%clk 0:01:29]}  Qd4 {[%clk 0:00:35]} 31. Qc3 {[%clk 0:00:51]}  Qxc3 {[%clk 0:00:29]} 32. Rxc3 {[%clk 0:00:52]}  Rxa2 {[%clk 0:00:29]} 33. Rc7 {[%clk 0:00:48]}  a5 {[%clk 0:00:26]} 34. Rf1 {[%clk 0:00:41]}  h5 {[%clk 0:00:24]} 35. Bf3 {[%clk 0:00:15]}  Nxf3 {[%clk 0:00:20]} 36. Rxf3 {[%clk 0:00:16]}  Raxg2 {[%clk 0:00:20]} 37. Rf1 {[%clk 0:00:15]}  R2g3 {[%clk 0:00:20]} 38. Kh2 {[%clk 0:00:14]}  Rg2+ {[%clk 0:00:20]} 39. Kh1 {[%clk 0:00:14]}  R2g3 {[%clk 0:00:20]} 40. Rf2 {[%clk 0:00:14]}  Rxh3+ {[%clk 0:00:20]} 41. Rh2 {[%clk 0:00:14]}  Rxb3 {[%clk 0:00:21]} 42. Rxh5# {[%clk 0:00:14]} 1-0

[Event "January 9 Early 2024"]
[Site "https://www.chess.com"]
[Date "2024.01.11"]
[Round "6"]
[White "Sultanbek, Zeinep"]
[Black "Terziev, Dimo"]
[Result "0-1"]
[Board "141"]
[TimeControl "180+1"]
[WhiteFideId "13710419"]
[BlackFideId "2925397"]
[WhiteElo "2297"]
[BlackElo "2174"]
[WhiteTeam "KAZ"]
[BlackTeam "BUL"]
[WhiteClock "0:00:04"]
[BlackClock "0:00:03"]

1. d4 {[%clk 0:03:00]}  d5 {[%clk 0:02:52]} 2. c4 {[%clk 0:03:00]}  dxc4 {[%clk 0:02:45]} 3. Nf3 {[%clk 0:03:00]}  Nf6 {[%clk 0:02:44]} 4. g3 {[%clk 0:03:00]}  e6 {[%clk 0:02:33]} 5. Bg2 {[%clk 0:03:00]}  Bd6 {[%clk 0:02:33]} 6. O-O {[%clk 0:02:57]}  O-O {[%clk 0:02:34]} 7. Qc2 {[%clk 0:02:58]}  c5 {[%clk 0:02:29]} 8. dxc5 {[%clk 0:02:53]}  Bxc5 {[%clk 0:02:29]} 9. Qxc4 {[%clk 0:02:54]}  Qe7 {[%clk 0:02:25]} 10. Nc3 {[%clk 0:02:42]}  Bb6 {[%clk 0:02:11]} 11. Rd1 {[%clk 0:02:34]}  Bd7 {[%clk 0:02:03]} 12. Ne5 {[%clk 0:02:19]}  Bc6 {[%clk 0:01:59]} 13. Nxc6 {[%clk 0:02:15]}  Nxc6 {[%clk 0:01:58]} 14. Bxc6 {[%clk 0:01:19]}  Rac8 {[%clk 0:01:57]} 15. Qh4 {[%clk 0:01:20]}  Rxc6 {[%clk 0:01:48]} 16. Ne4 {[%clk 0:01:17]}  e5 {[%clk 0:01:25]} 17. Bg5 {[%clk 0:01:11]}  Qe6 {[%clk 0:00:46]} 18. Nxf6+ {[%clk 0:00:56]}  gxf6 {[%clk 0:00:45]} 19. Bh6 {[%clk 0:00:57]}  Rfc8 {[%clk 0:00:45]} 20. Rd3 {[%clk 0:00:33]}  Qf5 {[%clk 0:00:40]} 21. Rad1 {[%clk 0:00:30]}  e4 {[%clk 0:00:11]} 22. Rd5 {[%clk 0:00:23]}  Qg6 {[%clk 0:00:10]} 23. e3 {[%clk 0:00:17]}  Rc2 {[%clk 0:00:08]} 24. Rd6 {[%clk 0:00:15]}  R2c6 {[%clk 0:00:06]} 25. Kg2 {[%clk 0:00:07]}  Qf5 {[%clk 0:00:05]} 26. R1d5 {[%clk 0:00:06]}  Qg6 {[%clk 0:00:05]} 27. Rxc6 {[%clk 0:00:05]}  Rxc6 {[%clk 0:00:04]} 28. Qf4 {[%clk 0:00:06]}  Rc8 {[%clk 0:00:03]} 29. Rd6 {[%clk 0:00:04]}  Bc7 {[%clk 0:00:03]} 0-1

[Event "January 9 Early 2024"]
[Site "https://www.chess.com"]
[Date "2024.01.11"]
[Round "6"]
[White "Nowak, Lukasz"]
[Black "Mesa Cruz, Juan Carlos"]
[Result "1-0"]
[Board "142"]
[TimeControl "180+1"]
[WhiteFideId "1166760"]
[BlackFideId "6423400"]
[WhiteElo "2010"]
[BlackElo "2363"]
[WhiteTeam "POL"]
[BlackTeam "DOM"]
[WhiteClock "0:00:24"]
[BlackClock "0:00:02"]

1. c4 {[%clk 0:03:00]}  Nf6 {[%clk 0:00:42]} 2. g3 {[%clk 0:02:55]}  e6 {[%clk 0:00:32]} 3. Bg2 {[%clk 0:02:54]}  d5 {[%clk 0:00:33]} 4. Nf3 {[%clk 0:02:53]}  Be7 {[%clk 0:00:34]} 5. b3 {[%clk 0:02:50]}  O-O {[%clk 0:00:34]} 6. Bb2 {[%clk 0:02:50]}  c5 {[%clk 0:00:34]} 7. cxd5 {[%clk 0:02:49]}  Nxd5 {[%clk 0:00:33]} 8. O-O {[%clk 0:02:45]}  Bf6 {[%clk 0:00:32]} 9. d4 {[%clk 0:02:26]}  cxd4 {[%clk 0:00:27]} 10. Nxd4 {[%clk 0:02:25]}  Qb6 {[%clk 0:00:20]} 11. Na3 {[%clk 0:02:01]}  Rd8 {[%clk 0:00:15]} 12. Nc4 {[%clk 0:02:01]}  Qc5 {[%clk 0:00:14]} 13. e3 {[%clk 0:01:54]}  Nc6 {[%clk 0:00:12]} 14. Rc1 {[%clk 0:01:41]}  Nxd4 {[%clk 0:00:11]} 15. exd4 {[%clk 0:01:31]}  Qb5 {[%clk 0:00:11]} 16. Ne3 {[%clk 0:01:26]}  Bd7 {[%clk 0:00:08]} 17. Nxd5 {[%clk 0:01:24]}  exd5 {[%clk 0:00:09]} 18. Rc5 {[%clk 0:01:22]}  Qb4 {[%clk 0:00:06]} 19. Bxd5 {[%clk 0:01:14]}  b6 {[%clk 0:00:05]} 20. Rc4 {[%clk 0:01:12]}  Qb5 {[%clk 0:00:04]} 21. Bxa8 {[%clk 0:01:11]}  Rxa8 {[%clk 0:00:04]} 22. Re1 {[%clk 0:01:10]}  Qd5 {[%clk 0:00:03]} 23. Qe2 {[%clk 0:01:04]}  h6 {[%clk 0:00:02]} 24. Qe4 {[%clk 0:01:02]}  Be6 {[%clk 0:00:01]} 25. Qxd5 {[%clk 0:00:59]}  Bxd5 {[%clk 0:00:02]} 26. Rc7 {[%clk 0:00:58]}  h5 {[%clk 0:00:02]} 27. Rec1 {[%clk 0:00:53]}  Kh7 {[%clk 0:00:02]} 28. Rc8 {[%clk 0:00:51]}  Rxc8 {[%clk 0:00:01]} 29. Rxc8 {[%clk 0:00:51]}  Kg6 {[%clk 0:00:02]} 30. Rc7 {[%clk 0:00:49]}  a6 {[%clk 0:00:03]} 31. Kf1 {[%clk 0:00:43]}  Kf5 {[%clk 0:00:03]} 32. Ke2 {[%clk 0:00:42]}  Kg4 {[%clk 0:00:03]} 33. h4 {[%clk 0:00:40]}  g5 {[%clk 0:00:03]} 34. hxg5 {[%clk 0:00:38]}  Kxg5 {[%clk 0:00:04]} 35. Rd7 {[%clk 0:00:33]}  Bc6 {[%clk 0:00:02]} 36. Rd6 {[%clk 0:00:33]}  Bb5+ {[%clk 0:00:01]} 37. Ke3 {[%clk 0:00:31]}  Kf5 {[%clk 0:00:01]} 38. Rxb6 {[%clk 0:00:30]}  Bg5+ {[%clk 0:00:01]} 39. f4 {[%clk 0:00:27]}  Be7 {[%clk 0:00:02]} 40. a4 {[%clk 0:00:24]} 1-0